fUST/lending_fUST_20260514
["ID","MTS","AMOUNT","RATE_DAILY","PERIOD"]
[422232176,1778737856000,-500.0,0.00011506,2]
[422232174,1778737856000,-500.0,0.00011506,2]
[422232185,1778737856000,-500.0,0.00011506,2]
[422232184,1778737856000,-500.0,0.00011506,2]
[422232181,1778737856000,-625.93355225,0.00011506,2]
[422232179,1778737856000,-500.0,0.00011506,2]
[422232175,1778737856000,-500.0,0.00011506,2]
[422232180,1778737856000,-500.0,0.00011506,2]
[422232182,1778737856000,-151.0,0.00011506,2]
[422232173,1778737856000,-500.0,0.00011506,2]
[422232157,1778737856000,-500.0,0.00011506,2]
[422232123,1778737856000,-500.0,0.00011506,2]
[422232155,1778737856000,-151.0,0.00011506,2]
[422232160,1778737856000,-151.0,0.00011506,2]
[422232130,1778737856000,-151.0,0.00011506,2]
[422232140,1778737856000,-500.0,0.00011506,2]
[422232129,1778737856000,-500.0,0.00011506,2]
[422232134,1778737856000,-500.0,0.00011506,2]
[422232136,1778737856000,-500.0,0.00011506,2]
[422232133,1778737856000,-500.0,0.00011506,2]
[422232132,1778737856000,-500.0,0.00011506,2]
[422232186,1778737856000,-500.0,0.00011506,2]
[422232131,1778737856000,-501.16261459,0.00011506,2]
[422232135,1778737856000,-1000.0,0.00011506,2]
[422232138,1778737856000,-500.0,0.00011506,2]
[422232139,1778737856000,-500.0,0.00011506,2]
[422232137,1778737856000,-500.0,0.00011506,2]
[422232153,1778737856000,-500.0,0.00011506,2]
[422232156,1778737856000,-151.0,0.00011506,2]
[422232143,1778737856000,-972.09,0.00011506,2]
[422232152,1778737856000,-151.0,0.00011506,2]
[422232149,1778737856000,-500.0,0.00011506,2]
[422232150,1778737856000,-151.0,0.00011506,2]
[422232148,1778737856000,-151.0,0.00011506,2]
[422232145,1778737856000,-151.0,0.00011506,2]
[422232142,1778737856000,-151.0,0.00011506,2]
[422232146,1778737856000,-500.0,0.00011506,2]
[422232151,1778737856000,-500.0,0.00011506,2]
[422232144,1778737856000,-500.0,0.00011506,2]
[422232147,1778737856000,-151.0,0.00011506,2]
[422232154,1778737856000,-166.999342,0.00011506,2]
[422232229,1778737857000,-500.0,0.00011506,2]
[422232227,1778737857000,-400.0,0.00011506,2]
[422232233,1778737857000,-500.0,0.00011506,2]
[422232231,1778737857000,-492.45,0.00011506,2]
[422232225,1778737857000,-400.0,0.00011506,2]
[422232219,1778737857000,-151.0,0.00011506,2]
[422232223,1778737857000,-500.0,0.00011506,2]
[422232222,1778737857000,-400.0,0.00011506,2]
[422232220,1778737857000,-500.0,0.00011506,2]
[422232221,1778737857000,-500.0,0.00011506,2]
[422232228,1778737857000,-492.45,0.00011506,2]
[422232226,1778737857000,-500.0,0.00011506,2]
[422232232,1778737857000,-492.45,0.00011506,2]
[422232239,1778737857000,-194.97906,0.00011506,2]
[422232234,1778737857000,-501.03922315,0.00011506,2]
[422232230,1778737857000,-492.45,0.00011506,2]
[422232236,1778737857000,-151.0,0.00011506,2]
[422232235,1778737857000,-500.0,0.00011506,2]
[422232246,1778737857000,-831.15,0.00011506,2]
[422232237,1778737857000,-194.97906,0.00011506,2]
[422232245,1778737857000,-500.90482161,0.00011506,2]
[422232238,1778737857000,-151.0,0.00011506,2]
[422232240,1778737857000,-151.0,0.00011506,2]
[422232241,1778737857000,-500.0,0.00011506,2]
[422232243,1778737857000,-151.0,0.00011506,2]
[422232217,1778737857000,-799.79,0.00011506,2]
[422232224,1778737857000,-400.0,0.00011506,2]
[422232218,1778737857000,-500.0,0.00011506,2]
[422232211,1778737857000,-500.0,0.00011506,2]
[422232216,1778737857000,-500.66008233,0.00011506,2]
[422232187,1778737857000,-151.0,0.00011506,2]
[422232197,1778737857000,-400.0,0.00011506,2]
[422232192,1778737857000,-500.80947532,0.00011506,2]
[422232189,1778737857000,-500.0,0.00011506,2]
[422232196,1778737857000,-500.0,0.00011506,2]
[422232195,1778737857000,-400.0,0.00011506,2]
[422232190,1778737857000,-500.55861124,0.00011506,2]
[422232188,1778737857000,-151.0,0.00011506,2]
[422232193,1778737857000,-500.0,0.00011506,2]
[422232191,1778737857000,-500.0,0.00011506,2]
[422232194,1778737857000,-400.0,0.00011506,2]
[422232199,1778737857000,-400.0,0.00011506,2]
[422232201,1778737857000,-400.0,0.00011506,2]
[422232203,1778737857000,-400.0,0.00011506,2]
[422232242,1778737857000,-194.97906,0.00011506,2]
[422232204,1778737857000,-400.0,0.00011506,2]
[422232202,1778737857000,-400.0,0.00011506,2]
[422232206,1778737857000,-500.0,0.00011506,2]
[422232205,1778737857000,-500.0,0.00011506,2]
[422232210,1778737857000,-500.0,0.00011506,2]
[422232207,1778737857000,-500.0,0.00011506,2]
[422232200,1778737857000,-501.55971764,0.00011506,2]
[422232208,1778737857000,-500.0,0.00011506,2]
[422232209,1778737857000,-500.0,0.00011506,2]
[422232213,1778737857000,-501.29975113,0.00011506,2]
[422232212,1778737857000,-618.26,0.00011506,2]
[422232214,1778737857000,-500.0,0.00011506,2]
[422232215,1778737857000,-500.0,0.00011506,2]
[422232244,1778737857000,-194.97906,0.00011506,2]
[422232198,1778737857000,-463.72786055,0.00011506,2]
[422232258,1778737857000,-162.335452,0.00011506,2]
[422232277,1778737857000,-503.31908137,0.00011506,2]
[422232276,1778737857000,-500.0,0.00011506,2]
[422232281,1778737857000,-171.562634,0.00011506,2]
[422232280,1778737857000,-500.0,0.00011506,2]
[422232283,1778737857000,-556.510955,0.00011506,2]
[422232294,1778737857000,-500.95392268,0.00011506,2]
[422232290,1778737857000,-500.0,0.00011506,2]
[422232293,1778737857000,-500.0,0.00011506,2]
[422232289,1778737857000,-500.0,0.00011506,2]
[422232288,1778737857000,-556.510955,0.00011506,2]
[422232291,1778737857000,-838.67,0.00011506,2]
[422232287,1778737857000,-556.510955,0.00011506,2]
[422232286,1778737857000,-556.510955,0.00011506,2]
[422232292,1778737857000,-500.0,0.00011506,2]
[422232296,1778737857000,-500.0,0.00011506,2]
[422232306,1778737857000,-196.695385,0.00011506,2]
[422232298,1778737857000,-300.0,0.00011506,2]
[422232307,1778737857000,-196.695385,0.00011506,2]
[422232297,1778737857000,-1145.36,0.00011506,2]
[422232295,1778737857000,-500.0,0.00011506,2]
[422232304,1778737857000,-550.23,0.00011506,2]
[422232300,1778737857000,-500.0,0.00011506,2]
[422232299,1778737857000,-300.0,0.00011506,2]
[422232302,1778737857000,-500.0,0.00011506,2]
[422232303,1778737857000,-300.0,0.00011506,2]
[422232305,1778737857000,-500.0,0.00011506,2]
[422232248,1778737857000,-196.98,0.00011506,2]
[422232275,1778737857000,-171.562634,0.00011506,2]
[422232278,1778737857000,-500.0,0.00011506,2]
[422232301,1778737857000,-300.0,0.00011506,2]
[422232273,1778737857000,-171.562634,0.00011506,2]
[422232279,1778737857000,-171.562634,0.00011506,2]
[422232252,1778737857000,-196.98,0.00011506,2]
[422232251,1778737857000,-196.98,0.00011506,2]
[422232247,1778737857000,-500.0,0.00011506,2]
[422232249,1778737857000,-196.98,0.00011506,2]
[422232250,1778737857000,-500.0,0.00011506,2]
[422232253,1778737857000,-500.0,0.00011506,2]
[422232256,1778737857000,-500.0,0.00011506,2]
[422232257,1778737857000,-162.335452,0.00011506,2]
[422232255,1778737857000,-162.335452,0.00011506,2]
[422232261,1778737857000,-500.0,0.00011506,2]
[422232271,1778737857000,-500.0,0.00011506,2]
[422232260,1778737857000,-162.335452,0.00011506,2]
[422232254,1778737857000,-500.92738444,0.00011506,2]
[422232264,1778737857000,-500.99623973,0.00011506,2]
[422232285,1778737857000,-500.0,0.00011506,2]
[422232272,1778737857000,-500.0,0.00011506,2]
[422232282,1778737857000,-151.0,0.00011506,2]
[422232284,1778737857000,-820.05,0.00011506,2]
[422232274,1778737857000,-500.0,0.00011506,2]
[422232267,1778737857000,-500.0,0.00011506,2]
[422232268,1778737857000,-500.0,0.00011506,2]
[422232259,1778737857000,-500.0,0.00011506,2]
[422232270,1778737857000,-500.0,0.00011506,2]
[422232265,1778737857000,-500.0,0.00011506,2]
[422232266,1778737857000,-500.0,0.00011506,2]
[422232262,1778737857000,-2217.95,0.00011506,2]
[422232263,1778737857000,-500.0,0.00011506,2]
[422232269,1778737857000,-500.0,0.00011506,2]
[422232349,1778737858000,-500.0,0.00011506,2]
[422232347,1778737858000,-417.369521,0.00011506,2]
[422232348,1778737858000,-417.369517,0.00011506,2]
[422232345,1778737858000,-974.91,0.00011506,2]
[422232341,1778737858000,-417.369521,0.00011506,2]
[422232342,1778737858000,-417.369521,0.00011506,2]
[422232346,1778737858000,-500.0,0.00011506,2]
[422232340,1778737858000,-417.369521,0.00011506,2]
[422232343,1778737858000,-417.369521,0.00011506,2]
[422232351,1778737858000,-500.0,0.00011506,2]
[422232338,1778737858000,-500.0,0.00011506,2]
[422232344,1778737858000,-417.369521,0.00011506,2]
[422232364,1778737858000,-494.373344,0.00011506,2]
[422232353,1778737858000,-500.0,0.00011506,2]
[422232357,1778737858000,-613.427863,0.00011506,2]
[422232352,1778737858000,-412.45760934,0.00011506,2]
[422232356,1778737858000,-500.0,0.00011506,2]
[422232355,1778737858000,-500.0,0.00011506,2]
[422232354,1778737858000,-500.0,0.00011506,2]
[422232358,1778737858000,-613.427863,0.00011506,2]
[422232360,1778737858000,-494.373344,0.00011506,2]
[422232363,1778737858000,-613.427863,0.00011506,2]
[422232362,1778737858000,-613.427863,0.00011506,2]
[422232361,1778737858000,-500.0,0.00011506,2]
[422232359,1778737858000,-494.373344,0.00011506,2]
[422232339,1778737858000,-417.369521,0.00011506,2]
[422232350,1778737858000,-500.0,0.00011506,2]
[422232335,1778737858000,-500.0,0.00011506,2]
[422232333,1778737858000,-1863.33,0.00011506,2]
[422232336,1778737858000,-744.7,0.00011506,2]
[422232367,1778737858000,-151.0,0.00011506,2]
[422232309,1778737858000,-196.695385,0.00011506,2]
[422232311,1778737858000,-151.0,0.00011506,2]
[422232319,1778737858000,-151.0,0.00011506,2]
[422232320,1778737858000,-151.0,0.00011506,2]
[422232310,1778737858000,-196.695385,0.00011506,2]
[422232308,1778737858000,-500.0,0.00011506,2]
[422232314,1778737858000,-151.0,0.00011506,2]
[422232318,1778737858000,-151.0,0.00011506,2]
[422232313,1778737858000,-151.0,0.00011506,2]
[422232315,1778737858000,-196.695385,0.00011506,2]
[422232316,1778737858000,-196.695385,0.00011506,2]
[422232312,1778737858000,-151.0,0.00011506,2]
[422232317,1778737858000,-151.0,0.00011506,2]
[422232322,1778737858000,-196.695385,0.00011506,2]
[422232323,1778737858000,-677.229542,0.00011506,2]
[422232321,1778737858000,-677.229542,0.00011506,2]
[422232332,1778737858000,-677.229534,0.00011506,2]
[422232324,1778737858000,-196.695377,0.00011506,2]
[422232326,1778737858000,-278.84224,0.00011506,2]
[422232331,1778737858000,-677.229542,0.00011506,2]
[422232327,1778737858000,-677.229542,0.00011506,2]
[422232328,1778737858000,-677.229542,0.00011506,2]
[422232325,1778737858000,-151.0,0.00011506,2]
[422232330,1778737858000,-677.229542,0.00011506,2]
[422232329,1778737858000,-677.229542,0.00011506,2]
[422232334,1778737858000,-624.63935706,0.00011506,2]
[422232337,1778737858000,-599.85,0.00011506,2]
[422232365,1778737858000,-494.373344,0.00011506,2]
[422232381,1778737858000,-500.0,0.00011506,2]
[422232375,1778737858000,-613.427854,0.00011506,2]
[422232400,1778737858000,-663.902263,0.00011506,2]
[422232397,1778737858000,-2880.466971,0.00011506,2]
[422232399,1778737858000,-2880.466975,0.00011506,2]
[422232402,1778737858000,-500.0,0.00011506,2]
[422232406,1778737858000,-663.902263,0.00011506,2]
[422232405,1778737858000,-200.812441,0.00011506,2]
[422232416,1778737858000,-212.244388,0.00011506,2]
[422232415,1778737858000,-1712.337036,0.00011506,2]
[422232414,1778737858000,-212.244388,0.00011506,2]
[422232411,1778737858000,-500.0,0.00011506,2]
[422232368,1778737858000,-151.0,0.00011506,2]
[422232410,1778737858000,-500.0,0.00011506,2]
[422232407,1778737858000,-200.812433,0.00011506,2]
[422232409,1778737858000,-500.0,0.00011506,2]
[422232412,1778737858000,-1983.22,0.00011506,2]
[422232408,1778737858000,-663.902267,0.00011506,2]
[422232418,1778737858000,-1712.337036,0.00011506,2]
[422232417,1778737858000,-500.0,0.00011506,2]
[422232419,1778737858000,-212.244388,0.00011506,2]
[422232420,1778737858000,-500.0,0.00011506,2]
[422232421,1778737858000,-1712.337036,0.00011506,2]
[422232422,1778737858000,-212.244388,0.00011506,2]
[422232424,1778737858000,-1712.337039,0.00011506,2]
[422232423,1778737858000,-500.0,0.00011506,2]
[422232426,1778737858000,-644.66,0.00011506,2]
[422232425,1778737858000,-500.95273135,0.00011506,2]
[422232427,1778737858000,-696.36,0.00011506,2]
[422232398,1778737858000,-500.0,0.00011506,2]
[422232401,1778737858000,-200.812441,0.00011506,2]
[422232413,1778737858000,-856.46,0.00011506,2]
[422232404,1778737858000,-663.902263,0.00011506,2]
[422232403,1778737858000,-200.812441,0.00011506,2]
[422232366,1778737858000,-500.0,0.00011506,2]
[422232370,1778737858000,-494.373344,0.00011506,2]
[422232374,1778737858000,-494.373344,0.00011506,2]
[422232377,1778737858000,-500.0,0.00011506,2]
[422232371,1778737858000,-613.427863,0.00011506,2]
[422232376,1778737858000,-500.0,0.00011506,2]
[422232372,1778737858000,-494.373344,0.00011506,2]
[422232373,1778737858000,-613.427863,0.00011506,2]
[422232379,1778737858000,-500.0,0.00011506,2]
[422232389,1778737858000,-500.0,0.00011506,2]
[422232391,1778737858000,-1991.98,0.00011506,2]
[422232390,1778737858000,-500.0,0.00011506,2]
[422232369,1778737858000,-613.427863,0.00011506,2]
[422232380,1778737858000,-500.0,0.00011506,2]
[422232378,1778737858000,-494.37334,0.00011506,2]
[422232396,1778737858000,-2880.466971,0.00011506,2]
[422232394,1778737858000,-2880.466971,0.00011506,2]
[422232395,1778737858000,-500.68661428,0.00011506,2]
[422232392,1778737858000,-500.0,0.00011506,2]
[422232388,1778737858000,-500.0,0.00011506,2]
[422232393,1778737858000,-500.0,0.00011506,2]
[422232383,1778737858000,-500.0,0.00011506,2]
[422232384,1778737858000,-819.52,0.00011506,2]
[422232386,1778737858000,-1100.77,0.00011506,2]
[422232387,1778737858000,-718.21,0.00011506,2]
[422232385,1778737858000,-852.34,0.00011506,2]
[422232382,1778737858000,-500.0,0.00011506,2]
[422232444,1778737859000,-363.127352,0.00011232,2]
[422232445,1778737859000,-363.127352,0.00011232,2]
[422232443,1778737859000,-249.179776,0.00011232,2]
[422232446,1778737859000,-2308.90245766,0.00011506,2]
[422232451,1778737859000,-689.515271,0.00011506,2]
[422232447,1778737859000,-218.512441,0.00011506,2]
[422232450,1778737859000,-218.512433,0.00011506,2]
[422232452,1778737859000,-500.0,0.00011506,2]
[422232453,1778737859000,-689.515271,0.00011506,2]
[422232442,1778737859000,-249.179776,0.00010959,2]
[422232448,1778737859000,-3924.176918,0.00011506,2]
[422232441,1778737859000,-363.127352,0.00010959,2]
[422232433,1778737859000,-3924.176926,0.00011506,2]
[422232440,1778737859000,-363.127352,0.00010959,2]
[422232436,1778737859000,-3924.176926,0.00011506,2]
[422232437,1778737859000,-218.512441,0.00011506,2]
[422232435,1778737859000,-500.0,0.00011506,2]
[422232432,1778737859000,-500.86802685,0.00011506,2]
[422232438,1778737859000,-1615.27446834,0.00011506,2]
[422232434,1778737859000,-218.512441,0.00011506,2]
[422232430,1778737859000,-500.0,0.00011506,2]
[422232431,1778737859000,-500.0,0.00011506,2]
[422232429,1778737859000,-500.0,0.00011506,2]
[422232428,1778737859000,-500.0,0.00011506,2]
[422232439,1778737859000,-249.179776,0.00010959,2]
[422232454,1778737859000,-689.515271,0.00011506,2]
[422232449,1778737859000,-500.0,0.00011506,2]
[422232455,1778737859000,-500.0,0.00011506,2]
[422232456,1778737859000,-689.515279,0.00011506,2]
[422232481,1778737859000,-673.22,0.00011506,2]
[422232480,1778737859000,-587.98,0.00011506,2]
[422232479,1778737859000,-151.0,0.00011506,2]
[422232478,1778737859000,-1352.23,0.00011506,2]
[422232477,1778737859000,-662.985623,0.00011506,2]
[422232476,1778737859000,-662.985631,0.00011506,2]
[422232472,1778737859000,-662.985631,0.00011506,2]
[422232473,1778737859000,-500.0,0.00011506,2]
[422232469,1778737859000,-500.0,0.00011506,2]
[422232474,1778737859000,-662.985631,0.00011506,2]
[422232471,1778737859000,-1968.56,0.00011506,2]
[422232475,1778737859000,-500.0,0.00011506,2]
[422232464,1778737859000,-902.47,0.00011506,2]
[422232470,1778737859000,-500.0,0.00011506,2]
[422232457,1778737859000,-767.84,0.00011506,2]
[422232458,1778737859000,-659.65,0.00011506,2]
[422232459,1778737859000,-500.0,0.00011506,2]
[422232462,1778737859000,-500.0,0.00011506,2]
[422232466,1778737859000,-151.0,0.00011506,2]
[422232460,1778737859000,-500.0,0.00011506,2]
[422232461,1778737859000,-499.0434649,0.00011506,2]
[422232463,1778737859000,-151.0,0.00011506,2]
[422232467,1778737859000,-151.0,0.00011506,2]
[422232465,1778737859000,-500.0,0.00011506,2]
[422232468,1778737859000,-151.0,0.00011506,2]
[422232516,1778737860000,-4803.78,0.00011506,2]
[422232522,1778737860000,-500.0,0.00011506,2]
[422232515,1778737860000,-500.0,0.00011506,2]
[422232512,1778737860000,-1365.86,0.00011506,2]
[422232521,1778737860000,-3289.87,0.00011506,2]
[422232514,1778737860000,-500.0,0.00011506,2]
[422232513,1778737860000,-500.0,0.00011506,2]
[422232506,1778737860000,-500.0,0.00011506,2]
[422232505,1778737860000,-1574.8,0.00011506,2]
[422232519,1778737860000,-2447.19,0.00011506,2]
[422232511,1778737860000,-500.0,0.00011506,2]
[422232517,1778737860000,-500.0,0.00011506,2]
[422232534,1778737860000,-500.0,0.00011506,2]
[422232520,1778737860000,-1802.87,0.00011506,2]
[422232524,1778737860000,-500.0,0.00011506,2]
[422232533,1778737860000,-1201.66,0.00011506,2]
[422232523,1778737860000,-500.0,0.00011506,2]
[422232532,1778737860000,-500.0,0.00011506,2]
[422232507,1778737860000,-1211.98,0.00011506,2]
[422232531,1778737860000,-500.0,0.00011506,2]
[422232525,1778737860000,-858.2,0.00011506,2]
[422232528,1778737860000,-3054.65,0.00011506,2]
[422232527,1778737860000,-4063.9,0.00011506,2]
[422232526,1778737860000,-500.0,0.00011506,2]
[422232518,1778737860000,-500.0,0.00011506,2]
[422232509,1778737860000,-1107.16,0.00011506,2]
[422232504,1778737860000,-500.0,0.00011506,2]
[422232501,1778737860000,-190.56698544,0.00011506,2]
[422232483,1778737860000,-151.0,0.00011506,2]
[422232482,1778737860000,-500.0,0.00011506,2]
[422232485,1778737860000,-500.0,0.00011506,2]
[422232486,1778737860000,-249.09284,0.00011506,2]
[422232484,1778737860000,-500.0,0.00011506,2]
[422232487,1778737860000,-249.09284,0.00011506,2]
[422232488,1778737860000,-249.09284,0.00011506,2]
[422232489,1778737860000,-3876.57,0.00011506,2]
[422232490,1778737860000,-500.0,0.00011506,2]
[422232492,1778737860000,-500.0,0.00011506,2]
[422232491,1778737860000,-249.092848,0.00011506,2]
[422232494,1778737860000,-500.0,0.00011506,2]
[422232493,1778737860000,-1694.24,0.00011506,2]
[422232498,1778737860000,-448.26614754,0.00011506,2]
[422232495,1778737860000,-4631.41,0.00011506,2]
[422232497,1778737860000,-500.0,0.00011506,2]
[422232496,1778737860000,-529.62,0.00011506,2]
[422232500,1778737860000,-500.0,0.00011506,2]
[422232510,1778737860000,-500.0,0.00011506,2]
[422232529,1778737860000,-500.0,0.00011506,2]
[422232502,1778737860000,-500.0,0.00011506,2]
[422232503,1778737860000,-968.84,0.00011506,2]
[422232508,1778737860000,-500.0,0.00011506,2]
[422232499,1778737860000,-500.0,0.00011506,2]
[422232536,1778737860000,-500.0,0.00011506,2]
[422232530,1778737860000,-500.0,0.00011506,2]
[422232537,1778737860000,-737.21,0.00011506,2]
[422232571,1778737860000,-1844.01,0.00011506,2]
[422232570,1778737860000,-500.0,0.00011506,2]
[422232568,1778737860000,-1205.29,0.00011506,2]
[422232563,1778737860000,-582.79260246,0.00011506,2]
[422232561,1778737860000,-1223.18,0.00011506,2]
[422232569,1778737860000,-500.0,0.00011506,2]
[422232572,1778737860000,-500.0,0.00011506,2]
[422232574,1778737860000,-500.0,0.00011506,2]
[422232580,1778737860000,-3016.79,0.00011506,2]
[422232545,1778737860000,-500.0,0.00011506,2]
[422232575,1778737860000,-500.0,0.00011506,2]
[422232577,1778737860000,-1261.41681691,0.00011506,2]
[422232583,1778737860000,-151.0,0.00011506,2]
[422232582,1778737860000,-1772.49,0.00011506,2]
[422232576,1778737860000,-500.0,0.00011506,2]
[422232578,1778737860000,-1948.58318309,0.00011506,2]
[422232579,1778737860000,-500.81092221,0.00011506,2]
[422232573,1778737860000,-1376.7,0.00011506,2]
[422232585,1778737860000,-336.445103,0.00011506,2]
[422232584,1778737860000,-500.0,0.00011506,2]
[422232586,1778737860000,-1332.68,0.00011506,2]
[422232588,1778737860000,-336.445103,0.00011506,2]
[422232587,1778737860000,-500.0,0.00011506,2]
[422232589,1778737860000,-887.93,0.00011506,2]
[422232590,1778737860000,-956.63,0.00011506,2]
[422232565,1778737860000,-918.48,0.00011506,2]
[422232560,1778737860000,-500.6688975,0.00011506,2]
[422232581,1778737860000,-151.0,0.00011506,2]
[422232562,1778737860000,-500.72526381,0.00011506,2]
[422232535,1778737860000,-500.0,0.00011506,2]
[422232564,1778737860000,-500.0,0.00011506,2]
[422232546,1778737860000,-850.46,0.00011506,2]
[422232547,1778737860000,-1845.52,0.00011506,2]
[422232539,1778737860000,-1263.99,0.00011506,2]
[422232543,1778737860000,-502.02570407,0.00011506,2]
[422232540,1778737860000,-500.0,0.00011506,2]
[422232541,1778737860000,-1009.0,0.00011506,2]
[422232542,1778737860000,-500.0,0.00011506,2]
[422232559,1778737860000,-500.0,0.00011506,2]
[422232549,1778737860000,-500.0,0.00011506,2]
[422232548,1778737860000,-840.44,0.00011506,2]
[422232544,1778737860000,-23709.58,0.00011506,2]
[422232552,1778737860000,-500.0,0.00011506,2]
[422232567,1778737860000,-1837.24,0.00011506,2]
[422232566,1778737860000,-500.0,0.00011506,2]
[422232553,1778737860000,-577.91,0.00011506,2]
[422232550,1778737860000,-4374.64,0.00011506,2]
[422232558,1778737860000,-3106.8,0.00011506,2]
[422232555,1778737860000,-500.0,0.00011506,2]
[422232538,1778737860000,-758.53,0.00011506,2]
[422232557,1778737860000,-500.0,0.00011506,2]
[422232556,1778737860000,-500.0,0.00011506,2]
[422232554,1778737860000,-500.0,0.00011506,2]
[422232551,1778737860000,-500.0,0.00011506,2]
[422232622,1778737861000,-500.0,0.0001178,2]
[422232631,1778737861000,-249.179776,0.00011232,2]
[422232619,1778737861000,-500.0,0.0001178,2]
[422232617,1778737861000,-500.0,0.0001178,2]
[422232625,1778737861000,-500.81145433,0.0001178,2]
[422232627,1778737861000,-180.77565451,0.0001178,2]
[422232620,1778737861000,-151.0,0.0001178,2]
[422232626,1778737861000,-319.9045691,0.0001178,2]
[422232629,1778737861000,-500.90641912,0.0001178,2]
[422232621,1778737861000,-500.0,0.0001178,2]
[422232624,1778737861000,-1001.67963962,0.0001178,2]
[422232645,1778737861000,-185.728177,0.0001178,2]
[422232630,1778737861000,-161.6419822,0.0001178,2]
[422232637,1778737861000,-500.0,0.0001178,2]
[422232636,1778737861000,-151.0,0.0001178,2]
[422232635,1778737861000,-500.0,0.0001178,2]
[422232632,1778737861000,-338.3580178,0.0001178,2]
[422232633,1778737861000,-151.0,0.0001178,2]
[422232638,1778737861000,-151.0,0.0001178,2]
[422232639,1778737861000,-151.0,0.0001178,2]
[422232650,1778737861000,-501.2499202,0.0001178,2]
[422232640,1778737861000,-501.04186556,0.0001178,2]
[422232643,1778737861000,-500.0,0.0001178,2]
[422232623,1778737861000,-500.0,0.0001178,2]
[422232646,1778737861000,-500.0,0.0001178,2]
[422232634,1778737861000,-972.09,0.0001178,2]
[422232618,1778737861000,-151.0,0.0001178,2]
[422232686,1778737861000,-500.0,0.0001178,2]
[422232616,1778737861000,-151.0,0.0001178,2]
[422232644,1778737861000,-151.0,0.0001178,2]
[422232593,1778737861000,-173.909415,0.00011506,2]
[422232592,1778737861000,-336.445103,0.00011506,2]
[422232591,1778737861000,-500.0,0.00011506,2]
[422232594,1778737861000,-336.445108,0.00011506,2]
[422232598,1778737861000,-500.0,0.00011506,2]
[422232595,1778737861000,-500.0,0.00011506,2]
[422232596,1778737861000,-501.11515656,0.00011506,2]
[422232597,1778737861000,-821.65,0.00011506,2]
[422232599,1778737861000,-363.127352,0.00011506,2]
[422232601,1778737861000,-2699.64,0.00011506,2]
[422232600,1778737861000,-249.179776,0.00011506,2]
[422232628,1778737861000,-500.0,0.0001178,2]
[422232603,1778737861000,-363.127352,0.00011506,2]
[422232604,1778737861000,-249.179776,0.00011506,2]
[422232605,1778737861000,-363.127352,0.00011506,2]
[422232607,1778737861000,-800.0,0.00011597,2]
[422232608,1778737861000,-2460.26965228,0.00011642,2]
[422232606,1778737861000,-395.64216814,0.00011507,3]
[422232610,1778737861000,-152.0,0.00011727,2]
[422232609,1778737861000,-800.0,0.00011647,2]
[422232611,1778737861000,-2376.0097,0.0001178,2]
[422232612,1778737861000,-500.0,0.0001178,2]
[422232614,1778737861000,-500.0,0.0001178,2]
[422232615,1778737861000,-151.0,0.0001178,2]
[422232613,1778737861000,-500.0,0.0001178,2]